bitfinex-derivatives/quotes_ETHF0:USTF0_20251024
["timestamp","ask_amount","ask_price","bid_price","bid_amount"]
[1761267089281,2.38178205,3871.0,3870.9,0.46672723]
[1761267089979,0.00188205,3871.0,3870.9,5.46672723]
[1761267091077,1.66730126,3871.4,3871.3,0.46483]
[1761267091285,1.66730126,3871.4,3871.3,3.35738477]
[1761267091987,1.66730126,3871.4,3871.3,0.46483]
[1761267092177,1.66995101,3871.4,3871.3,0.46483]
[1761267093487,1.66995101,3871.4,3871.3,9.96983]
[1761267093680,1.66995101,3871.4,3871.2,9.96384]
[1761267094386,4.0065,3871.3,3871.2,9.96384]
[1761267095887,1.7018,3871.2,3871.1,1.14661711]
[1761267096087,4.0065,3871.2,3871.1,10.63961711]
[1761267096485,4.0065,3871.2,3871.1,9.95784]
[1761267096890,4.0065,3871.2,3871.1,10.63961711]
[1761267097790,4.0065,3871.2,3871.1,10.63161711]
[1761267098285,4.0065,3871.2,3871.1,9.94984]
[1761267099290,4.0065,3871.2,3871.1,10.86098701]
[1761267099696,1.7018,3871.2,3871.1,9.94984]
[1761267100080,0.00264975,3871.4,3871.3,0.46483]
[1761267100379,2.8442,3871.8,3871.7,0.46478]
[1761267100585,4.0065,3871.8,3871.7,10.63103819]
[1761267101179,4.0084641,3871.8,3871.7,10.63103819]
[1761267101385,1.7037641,3871.8,3871.7,9.94378]
[1761267101688,2.8461641,3871.8,3871.7,9.94378]
[1761267101889,4.0065,3871.7,3871.6,0.46479]
[1761267102192,2.8442,3871.7,3871.6,9.93979]
[1761267103296,2.8442,3871.7,3871.6,10.85613425]
[1761267103490,1.7018,3871.6,3871.4,0.91634425]
[1761267103694,0.0019641,3871.8,3871.4,1.38116425]
[1761267103695,4.6902,3871.5,3871.4,1.38116425]
[1761267103896,4.6902,3871.5,3871.4,10.85016425]
[1761267104296,4.6902,3871.5,3871.4,9.93382]
[1761267104792,4.6902,3871.5,3871.4,0.91702523]
[1761267105002,4.0065,3871.4,3871.3,0.91702523]
[1761267105206,4.0065,3871.4,3871.3,0.68791327]
[1761267105490,1.7018,3871.3,3871.1,10.53387523]
[1761267105691,0.6837,3871.5,3871.1,10.53387523]
[1761267105692,4.0065,3871.2,3871.1,10.53387523]
[1761267105892,4.0065,3871.2,3871.1,9.61685]
[1761267106093,4.0065,3871.2,3871.1,9.152]
[1761267106288,2.9884,3871.0,3870.9,1.37056891]
[1761267106484,4.6902,3871.0,3870.9,9.46284723]
[1761267106686,4.6902,3871.0,3870.9,0.00184723]
[1761267109192,1.7018,3870.9,3870.5,0.68856155]
[1761267109400,4.0065,3870.6,3870.5,0.68856155]
[1761267110102,4.0065,3870.6,3870.5,0.69148569]
[1761267111498,4.0065,3870.6,3870.5,0.00292414]
[1761267111702,4.0065,3870.6,3870.5,0.69129354]
[1761267113003,4.0065,3870.6,3870.5,0.00292414]
[1761267113304,4.0065,3870.6,3870.5,0.6909553]
[1761267114098,1.7018,3870.6,3870.5,0.00292414]
[1761267114300,1.7018,3870.9,3870.5,0.00292414]
[1761267114500,4.0065,3870.9,3870.8,2.96452309]
[1761267115301,2.3047,3870.9,3870.6,0.68791986]
[1761267115607,4.0065,3870.7,3870.6,0.68791986]
[1761267116307,4.0065,3870.7,3870.6,0.46491]
[1761267116799,1.7018,3870.7,3870.6,0.46491]
[1761267117000,4.0065,3870.7,3870.6,1.15282986]
[1761267117400,4.0065,3870.7,3870.6,0.46491]
[1761267118000,4.0065,3870.7,3870.6,1.15282986]
[1761267118310,1.7018,3870.7,3870.6,1.15282986]
[1761267118507,3.5279,3871.0,3870.9,0.46488]
[1761267118710,3.5279,3871.0,3870.9,3.65202685]
[1761267119307,4.6902,3871.0,3870.9,3.18714685]
[1761267119507,1.5861,3870.8,3870.5,9.3034279]
[1761267119810,3.8011,3870.6,3870.5,9.3034279]
[1761267120807,3.8011,3870.6,3870.5,0.6904279]
[1761267121109,3.8011,3870.6,3870.5,0.00292414]
[1761267121314,3.8011,3870.6,3870.5,0.6904279]
[1761267122113,3.8011,3870.6,3870.5,0.00292414]
[1761267124605,3.8011,3870.6,3870.0,0.68750376]
[1761267124801,1.5861,3869.9,3869.7,0.68750376]
[1761267125107,3.8011,3869.8,3869.7,0.68750376]
[1761267125304,1.5861,3869.7,3869.6,2.96467309]
[1761267125708,2.2028,3870.0,3869.9,0.465]
[1761267125906,2.2028,3870.5,3870.4,0.46494]
[1761267126107,2.2028,3870.5,3870.4,12.38958309]
[1761267128309,2.2028,3870.5,3870.4,13.3055776]
[1761267128811,2.2028,3870.5,3870.4,12.38958309]
[1761267129008,2.2028,3870.5,3870.4,13.3055776]
[1761267129317,1.5861,3870.9,3870.5,1.1623]
[1761267129520,1.5861,3870.9,3870.8,2.49964309]
[1761267130114,0.6837,3871.0,3870.8,7.96453309]
[1761267130417,1.5861,3871.2,3870.9,10.79072168]
[1761267130609,1.5861,3871.2,3871.1,1.38078134]
[1761267131018,0.6837,3871.5,3871.4,0.46482]
[1761267131218,0.6837,3871.5,3871.4,12.38846309]
[1761267131418,1.8348,3871.5,3871.4,12.38846309]
[1761267131713,4.4848,3871.5,3871.4,2.96446309]
[1761267131919,3.8011,3871.3,3871.2,1.15175975]
[1761267132119,3.8011,3871.3,3871.2,9.88584]
[1761267132321,1.5861,3871.2,3871.1,0.68691975]
[1761267132614,4.4178,3871.0,3870.9,10.10791975]
[1761267133719,4.4178,3871.0,3870.9,0.68691975]
[1761267143421,2.2028,3871.0,3870.9,2.49964309]
[1761267143623,2.2028,3871.0,3870.9,3.86836477]
[1761267145118,2.8317,3871.0,3870.8,1.83361168]
[1761267145313,2.8317,3871.0,3870.4,4.32433325]
[1761267145314,2.215,3870.6,3870.5,0.91745268]
[1761267145511,2.215,3870.6,3870.5,9.395]
[1761267146020,3.8011,3870.6,3870.5,9.395]
[1761267146617,3.8011,3870.6,3870.4,1.38238268]
[1761267146618,1.6806,3870.5,3870.3,0.91745268]
[1761267146919,1.6806,3870.5,3870.2,0.46495]
[1761267146920,2.2749,3870.3,3870.2,0.91745268]
[1761267147118,3.218,3870.3,3870.2,10.08232161]
[1761267148125,3.218,3870.3,3870.2,9.394]
[1761267149924,1.3922,3870.2,3870.1,0.68832161]
[1761267150127,3.2779,3869.4,3869.3,1.36872168]
[1761267150325,3.2779,3869.2,3869.1,1.36872168]
[1761267150523,0.9435,3868.9,3868.8,9.408]
[1761267150723,3.2779,3868.9,3868.8,9.408]
[1761267151231,3.28124419,3868.9,3868.8,9.41130824]
[1761267151421,1.39554419,3868.9,3868.8,10.33570824]
[1761267151622,0.00334419,3868.9,3868.8,10.80220824]
[1761267152737,1.39554419,3868.9,3868.8,10.80220824]
[1761267153935,3.28124419,3868.9,3868.8,0.00330824]
[1761267154926,3.28124419,3868.9,3868.8,0.46550824]
[1761267158033,3.28124419,3868.9,3868.8,0.00330824]
[1761267160330,2.33904419,3868.9,3868.8,0.92770824]
[1761267160535,3.28124419,3868.9,3868.8,0.92770824]
[1761267160734,3.28124419,3868.9,3868.8,10.31270824]
[1761267160935,3.28124419,3868.9,3868.8,9.38830824]
[1761267161734,3.28124419,3868.9,3868.8,0.00330824]
[1761267161935,3.28124419,3868.9,3868.8,9.39530824]
[1761267163137,3.28124419,3868.9,3868.8,10.31970824]
[1761267163347,2.33904419,3868.9,3868.8,10.31970824]
[1761267164246,3.28124419,3868.9,3868.8,10.31970824]
[1761267164438,1.39554419,3868.9,3868.8,10.31970824]
[1761267164646,1.39554419,3868.9,3868.8,13.28585133]
[1761267164647,0.00334419,3868.9,3868.8,13.28585133]
[1761267165143,1.39554419,3868.9,3868.8,13.28585133]
[1761267166041,0.00334419,3868.9,3868.8,13.28585133]
[1761267167645,0.00334419,3868.9,3868.8,3.89385133]
[1761267167842,0.00334419,3868.9,3868.8,13.27385133]
[1761267168749,0.00334419,3868.9,3868.8,10.77420824]
[1761267168938,1.39554419,3868.9,3868.8,10.77420824]
[1761267169748,0.00334419,3868.9,3868.8,10.77420824]
[1761267169943,0.00334419,3868.9,3868.8,10.77320824]
[1761267170749,0.00334419,3868.9,3868.8,10.76420824]
[1761267170951,3.28124419,3868.9,3868.8,0.46550824]
[1761267171153,3.28124419,3868.9,3868.8,0.00330824]
[1761267171345,3.28124419,3868.9,3868.8,9.37430824]
[1761267172249,3.28124419,3868.9,3868.8,0.00330824]
[1761267172450,3.28124419,3868.9,3868.8,9.37430824]
[1761267172764,1.39554419,3868.9,3868.8,10.29870824]
[1761267172951,0.9219731,3870.4,3870.2,1.8006]
[1761267173260,1.5602,3870.5,3870.3,11.64154]
[1761267173452,2.5024,3870.5,3870.4,10.2797]
[1761267173643,2.5024,3870.5,3870.3,0.46494]
[1761267173955,2.50531999,3870.5,3870.4,9.377]
[1761267174149,2.50531999,3870.5,3870.3,0.46494]
[1761267174354,2.50531999,3870.5,3870.4,9.375]
[1761267174954,3.89751999,3870.5,3870.4,9.375]
[1761267175253,1.3922,3870.4,3870.3,1.36664]
[1761267175456,3.2779,3870.4,3870.3,10.74064]
[1761267176848,3.2779,3870.4,3870.3,11.63954]
[1761267177244,0.61961999,3870.5,3870.4,2.7065]
[1761267177245,0.00291999,3870.5,3870.4,2.7065]
[1761267182063,3.181,3870.4,3870.3,0.46494]
[1761267182262,3.181,3870.4,3870.3,11.32734]
[1761267182556,2.2922,3870.4,3870.3,11.32734]
[1761267183467,2.2922,3870.4,3870.3,11.52937052]
[1761267183661,0.00291999,3870.5,3870.4,2.2551]
[1761267183862,9.99e-06,3870.5,3870.4,2.2551]
[1761267184162,1.3234,3870.4,3870.3,0.46494]
[1761267184364,3.181,3870.4,3870.3,9.82794]
[1761267184566,3.181,3870.4,3870.3,0.46494]
[1761267184766,3.181,3870.4,3870.3,9.82894]
[1761267185265,1.3234,3870.4,3870.3,12.08404]
[1761267185659,9.99e-06,3870.5,3870.4,0.7517]
[1761267186257,1.32340999,3870.5,3870.4,2.2551]
[1761267187058,9.99e-06,3870.5,3870.4,2.2551]
[1761267187261,9.99e-06,3870.5,3870.4,1.5034]
[1761267187966,9.99e-06,3870.5,3870.4,5.3514]
[1761267189465,0.5336,3871.5,3871.3,0.46482]
[1761267189466,2.3912,3871.5,3871.3,0.46482]
[1761267189662,2.3912,3871.5,3871.4,9.356]
[1761267190263,0.5336,3872.0,3871.8,1.25726]
[1761267190264,1.8576,3871.9,3871.8,1.25726]
[1761267190469,1.86030908,3871.9,3871.8,11.40676402]
[1761267191460,3.18370908,3871.9,3871.8,11.40676402]
[1761267192165,0.00270908,3871.9,3871.8,12.19926402]
[1761267193173,0.5047,3873.0,3872.9,1.585]
[1761267193174,1.4735,3873.0,3872.9,1.585]
[1761267193373,1.4735,3873.0,3872.9,10.936]
[1761267193576,1.8281,3873.0,3872.9,11.7285]
[1761267194161,1.83000599,3873.0,3872.9,11.7285]
[1761267194369,0.00190599,3873.0,3872.9,11.7285]
[1761267196777,1.3234,3873.9,3873.8,2.04953]
[1761267196974,0.9688,3872.9,3872.7,1.25715]
[1761267197176,1.3234,3873.8,3873.7,2.3775]
[1761267197363,1.3234,3873.8,3873.7,11.7335]
[1761267197672,1.32616794,3873.8,3873.7,11.7335]
[1761267197873,3.18376794,3873.8,3873.7,10.942]
[1761267198268,3.18376794,3873.8,3873.7,11.9345]
[1761267198269,2.09496794,3873.8,3873.7,11.9345]
[1761267198468,2.09496794,3873.8,3873.7,10.942]
[1761267198675,2.09496794,3873.8,3873.7,10.94]
[1761267199072,1.12616794,3873.8,3873.7,10.94]
[1761267199268,1.12616794,3873.8,3873.7,11.9325]
[1761267201476,2.09496794,3873.8,3873.7,10.94]
[1761267201875,2.09496794,3873.8,3873.7,11.9325]
[1761267202072,2.98376794,3873.8,3873.7,10.1475]
[1761267202374,0.00276794,3873.8,3873.7,2.6355]
[1761267202679,0.00276794,3873.8,3873.7,11.9785]
[1761267202883,0.00276794,3873.8,3873.7,15.8265]
[1761267203373,1.3234,3874.6,3874.5,0.9925]
[1761267203573,1.4735,3875.0,3874.5,12.0979]
[1761267203779,2.2922,3874.9,3874.8,2.2218]
[1761267203980,2.2922,3874.9,3874.8,11.5698]
[1761267204367,2.29535456,3874.9,3874.8,11.57261812]
[1761267204669,1.32655456,3874.9,3874.8,12.56511812]
[1761267204871,2.29535456,3874.9,3874.8,11.57261812]
[1761267205279,2.29535456,3874.9,3874.8,2.22461812]
[1761267205483,2.29535456,3874.9,3874.8,11.56961812]
[1761267205675,2.29535456,3874.9,3874.8,2.22461812]
[1761267205877,2.29535456,3874.9,3874.8,11.56761812]
[1761267207476,0.00315456,3874.9,3874.8,12.32391812]
[1761267207678,2.91685456,3874.9,3874.8,11.56761812]
[1761267208480,2.07145456,3874.9,3874.8,11.56761812]
[1761267209677,2.07145456,3874.9,3874.8,0.00281812]
[1761267209678,2.91685456,3874.9,3874.8,0.00281812]
[1761267209972,2.91685456,3874.9,3874.8,9.33381812]
[1761267210169,2.91685456,3874.9,3874.8,10.07121812]
[1761267210375,2.91685456,3874.9,3874.8,10.80861812]
[1761267211174,2.91685456,3874.9,3874.8,9.33381812]
[1761267211980,2.91685456,3874.9,3874.8,0.00281812]
[1761267212183,2.91685456,3874.9,3874.8,9.33981812]
[1761267212683,7.91685456,3874.9,3874.8,9.33681812]
[1761267212880,2.91685456,3874.9,3874.8,9.33681812]
[1761267213283,2.91685456,3874.9,3874.8,0.00281812]
[1761267216479,2.91685456,3874.9,3874.8,2.21611812]
[1761267216480,2.07145456,3874.9,3874.8,2.21611812]
[1761267216679,1.25165456,3874.9,3874.8,2.21611812]
[1761267217884,2.05045456,3874.9,3874.8,1.47761812]
[1761267218278,2.84775456,3874.9,3874.8,1.47761812]
[1761267218986,2.84775456,3874.9,3874.8,0.00281812]
[1761267219675,2.84775456,3874.9,3874.8,10.06721812]
[1761267220084,2.84775456,3874.9,3874.8,0.00281812]
[1761267220284,3.08110766,3874.9,3874.8,0.00281812]
[1761267221674,2.28230766,3874.9,3874.8,0.00281812]
[1761267221882,0.00315456,3874.9,3874.8,2.21611812]
[1761267222076,2.04275456,3874.9,3874.8,1.47761812]
[1761267222287,3.07390911,3874.9,3874.8,9.03761812]
[1761267222485,1.47780911,3874.9,3874.8,9.03761812]
[1761267222808,0.9219731,3876.3,3876.2,0.5282]
[1761267222982,1.2408,3876.4,3876.3,2.05003]
[1761267223183,1.2408,3877.3,3876.3,0.5294]
[1761267223382,1.2408,3877.6,3877.1,0.5294]
[1761267223583,0.0019224,3877.6,3877.5,0.5294]
[1761267223788,0.0019224,3877.6,3877.5,0.99348]
[1761267224393,0.01224307,3877.6,3877.5,0.99348]
[1761267224590,0.01224307,3877.6,3877.5,10.32348]
[1761267224794,0.02519146,3877.6,3877.5,10.32348]
[1761267225092,1.26599146,3877.6,3877.5,9.79408]
[1761267225393,1.26599146,3877.6,3877.1,0.5294]
[1761267225394,1.27815381,3877.6,3877.1,0.5294]
[1761267225583,1.27815381,3877.6,3877.2,9.329]
[1761267225783,1.27815381,3877.6,3877.3,0.46411]
[1761267226086,1.27815381,3877.6,3877.2,9.329]
[1761267226087,1.27815381,3877.6,3876.8,0.46417]
[1761267226292,1.27815381,3877.6,3877.0,0.46414]
[1761267226491,1.2408,3877.2,3876.9,9.326]
[1761267226682,1.2408,3877.2,3876.7,0.99358]
[1761267226683,1.2408,3877.1,3877.0,9.327]
[1761267226882,1.2408,3877.1,3876.8,0.46416]
[1761267227079,0.4891,3877.2,3876.5,0.5294]
[1761267227287,0.4891,3877.2,3876.7,0.5294]
[1761267227288,1.2408,3877.1,3876.7,0.5294]
[1761267227484,1.2408,3876.8,3876.4,0.46421]
[1761267227684,1.2408,3876.8,3876.6,0.5294]
[1761267227885,0.03543141,3876.9,3876.6,0.5294]
[1761267228092,1.27623141,3876.9,3876.6,0.5294]
[1761267228293,1.27623141,3876.9,3876.7,9.325]
[1761267228492,1.2408,3876.7,3876.0,0.5294]
[1761267228695,1.2408,3876.7,3876.3,2.49132063]
[1761267228887,0.03543141,3876.8,3876.5,0.5294]
[1761267229084,1.27623141,3876.8,3876.5,0.5294]
[1761267229389,1.27623141,3876.8,3876.6,9.333]
[1761267229688,0.03543141,3876.7,3876.6,10.65259]
[1761267229892,0.0019224,3877.6,3877.0,0.95813]
[1761267230088,1.2427224,3877.6,3877.0,0.95814]
[1761267230297,1.2427224,3877.6,3877.1,6.041]
[1761267230586,1.2427224,3877.6,3876.7,2.95549063]
[1761267230793,1.2427224,3877.6,3876.8,9.831]
[1761267231198,1.74123672,3877.2,3876.8,9.337]
[1761267231488,1.74123672,3877.2,3876.5,0.494]
[1761267231489,0.02264203,3877.0,3876.9,9.335]
[1761267231697,1.26344203,3877.0,3876.9,9.335]
[1761267231896,1.27474734,3877.0,3876.9,9.335]
[1761267232592,1.27626282,3877.0,3876.9,9.335]
[1761267232798,1.27626282,3877.0,3876.1,0.95824]
[1761267233097,1.27626282,3877.0,3876.2,9.79923]
[1761267233696,0.03546282,3876.6,3876.3,0.494]
[1761267233999,1.27626282,3876.6,3876.3,0.494]
[1761267234189,1.27626282,3876.6,3876.4,0.46421]
[1761267234386,1.76536282,3876.6,3876.5,9.328]
[1761267234691,1.2408,3876.5,3876.1,3.44957063]
[1761267234891,1.2408,3876.5,3876.2,9.337]
[1761267235087,1.2408,3876.5,3876.2,0.494]
[1761267235300,1.2408,3876.5,3876.3,9.337]
[1761267235495,1.2408,3876.5,3876.1,2.49132063]
[1761267235792,1.2408,3876.2,3875.9,0.46427]
[1761267235995,1.2408,3876.2,3875.6,2.49132063]
[1761267236189,1.2408,3876.2,3875.7,6.183]
[1761267236593,0.03546282,3876.0,3875.7,6.183]
[1761267236793,1.2408,3875.9,3875.7,6.64729]
[1761267237294,1.2408,3875.9,3875.6,2.49132063]
[1761267237495,1.2408,3875.9,3875.7,6.647]
[1761267237694,0.03546282,3875.8,3875.7,7.141]
[1761267238095,1.27626282,3875.8,3875.7,7.141]
[1761267238295,1.29695181,3875.8,3875.4,0.46433]
[1761267238504,1.29695181,3875.8,3875.5,5.958]
[1761267238702,1.29695181,3875.8,3875.5,6.42232]
[1761267238898,1.2408,3875.6,3875.5,6.42232]
[1761267239094,0.07089423,3875.7,3875.6,0.7959]
[1761267240004,2.01339423,3875.7,3875.6,0.5312]
[1761267240302,2.01339423,3875.7,3875.6,10.32551]
[1761267240600,1.17809423,3875.7,3875.6,10.59021]
[1761267240998,1.17809423,3875.7,3875.6,10.32551]
[1761267241196,2.76899423,3875.7,3875.6,9.8612]
[1761267241403,3.1355,3875.5,3875.4,0.2656]
[1761267241700,0.4374,3875.0,3874.8,0.00281812]
[1761267241901,1.17809423,3874.9,3874.8,0.00281812]
[1761267242198,1.17809423,3874.9,3874.8,5.52681812]
[1761267242505,1.17809423,3874.9,3874.8,0.00281812]
[1761267242704,0.07089423,3874.9,3874.8,6.14451812]
[1761267242905,1.17809423,3874.9,3874.8,6.34422812]
[1761267243705,1.17809423,3874.9,3874.8,9.79222812]
[1761267244209,1.17809423,3874.9,3874.8,10.05782812]
[1761267244405,1.17809423,3874.9,3874.8,10.32342812]
[1761267244606,2.77803315,3874.9,3874.8,9.32781812]
[1761267244904,2.78707207,3874.9,3874.8,0.00281812]
[1761267245099,2.79611099,3874.9,3874.8,0.00281812]
[1761267245603,0.4374,3874.0,3873.9,0.6819405]
[1761267245797,1.5446,3874.0,3873.9,9.8532]
[1761267245998,0.10632564,3874.0,3873.9,10.1179]
[1761267247001,0.10902294,3874.0,3873.9,10.12057834]
[1761267247407,1.65362294,3874.0,3873.9,9.85587834]
[1761267247607,1.65362294,3874.0,3873.9,10.11957834]
[1761267247608,0.10902294,3874.0,3873.9,10.11957834]
[1761267249109,0.10902294,3874.0,3873.9,0.53387834]
[1761267249110,3.24452294,3874.0,3873.9,0.53387834]
[1761267249319,3.24452294,3874.0,3873.9,0.00267834]
[1761267249707,3.24452294,3874.0,3872.6,1.36872168]
[1761267249708,1.5446,3873.0,3872.9,0.46463]
[1761267249905,1.5446,3873.0,3872.7,0.6819405]
[1761267249906,1.1072,3872.9,3872.7,0.46466]
[1761267250208,1.1072,3872.9,3872.8,9.319]
[1761267250801,1.1072,3872.9,3872.8,9.32176502]
[1761267250996,1.21352564,3872.9,3872.8,9.32176502]
[1761267251204,1.21352564,3872.9,3872.8,0.00276502]
[1761267251400,1.21352564,3872.9,3872.8,9.31876502]
[1761267252310,1.1072,3873.9,3873.8,0.46453]
[1761267252511,0.0026973,3874.0,3873.9,0.2647]
[1761267252709,1.1098973,3874.0,3873.8,12.27385063]
[1761267253008,1.1072,3873.9,3873.8,2.95585063]
[1761267253209,1.1072,3873.9,3873.8,9.319]
[1761267253615,1.1072,3873.9,3873.5,0.46456]
[1761267253910,1.1072,3873.9,3873.6,9.318]
[1761267254515,1.1072,3873.9,3873.7,0.46453]
[1761267255515,0.4400973,3874.0,3873.9,0.72922]
[1761267255516,0.0026973,3874.0,3873.9,0.72922]
[1761267261716,0.0026973,3874.0,3873.9,0.5312]
[1761267261717,1.9451973,3874.0,3873.9,0.5312]
[1761267261918,2.6981,3873.9,3873.8,3.848]
[1761267262222,1.1072,3873.4,3873.1,0.2656]
[1761267262515,1.9425,3873.4,3873.3,0.5312]
[1761267263521,2.6981,3873.4,3872.9,3.17326113]
[1761267263723,0.4374,3873.0,3872.9,2.49132063]
[1761267263915,1.1072,3872.9,3872.8,0.00276502]
[1761267264225,1.1072,3872.9,3872.8,9.31676502]
[1761267264521,1.5446,3873.5,3873.2,0.46459]
[1761267264824,1.1072,3873.4,3873.3,9.314]
[1761267265325,1.1072,3873.4,3873.3,9.315]
[1761267266012,1.1072,3873.4,3873.0,0.46462]
[1761267266013,1.5446,3873.0,3872.9,3.17326113]
[1761267266214,1.5446,3873.0,3872.9,12.48826113]
[1761267266723,1.1072,3873.4,3873.0,0.46462]
[1761267267124,1.1072,3873.4,3873.0,1.1465605]
[1761267267921,1.0465,3873.9,3873.1,0.0579]
[1761267268122,1.0465,3873.9,3873.1,0.7398405]
[1761267268316,1.0465,3873.9,3873.2,0.4646]
[1761267268521,1.0465,3873.9,3873.5,0.0579]
[1761267268815,1.0465,3873.9,3873.6,9.315]
[1761267272730,1.0465,3873.9,3873.7,9.315]
[1761267274429,2.3197,3873.7,3873.6,0.6819405]
[1761267274931,0.9898,3872.4,3872.1,0.91526563]
[1761267275124,0.9898,3872.4,3871.9,1.36872168]
[1761267275125,0.9898,3872.4,3871.9,7.06275]
[1761267275334,1.3982,3872.0,3871.9,7.06275]
[1761267275925,1.3982,3872.0,3871.9,6.60095532]
[1761267277531,0.9898,3872.0,3871.9,7.33365532]
[1761267278235,0.9898,3872.0,3871.9,6.60095532]
[1761267279138,0.9898,3872.0,3871.9,7.27585532]
[1761267279329,2.7281,3872.0,3871.9,7.27585532]
[1761267279731,2.7281,3872.0,3871.9,0.00295532]
[1761267280131,2.7281,3872.0,3871.9,8.81995532]
[1761267281233,2.0711,3872.0,3871.9,10.15245532]
[1761267281434,0.9898,3872.4,3872.2,1.19741]
[1761267281639,2.3197,3872.4,3872.3,0.6749]
[1761267282342,1.6627,3872.1,3872.0,1.79724]
[1761267284952,1.6627,3872.1,3872.0,11.11424]
[1761267287452,2.3197,3872.1,3872.0,10.6495]
[1761267287652,0.4084,3872.5,3871.9,0.46770532]
[1761267287653,2.7281,3872.0,3871.9,0.00295532]
[1761267288155,2.7281,3872.0,3871.9,9.31995532]
[1761267288647,2.7281,3872.0,3871.0,0.46486]
[1761267288844,2.0711,3872.0,3871.9,0.6749]
[1761267289045,2.3197,3872.4,3872.3,0.6749]
[1761267289244,2.3197,3872.4,3872.3,9.9919]
[1761267289752,2.3197,3872.4,3872.3,9.9941023]
[1761267294244,0.4084,3873.0,3872.3,10.6517023]
[1761267294245,0.9898,3872.9,3872.3,10.6517023]
[1761267294449,1.6627,3872.9,3872.8,1.79714]
[1761267294649,1.6627,3872.9,3872.8,11.11414]
[1761267295055,2.3197,3872.9,3872.8,11.11414]
[1761267296052,1.3982,3873.0,3872.9,2.0652]
[1761267296354,1.3982,3873.0,3872.9,1.3325]
[1761267296355,2.7281,3873.0,3872.9,1.3325]
[1761267298154,0.4084,3873.5,3873.1,0.7327]
[1761267298155,0.9898,3873.4,3873.1,0.7327]
[1761267298453,1.6627,3873.4,3873.3,1.79708]
[1761267298660,1.6627,3873.4,3873.3,11.11308]
[1761267299051,2.3197,3873.4,3873.3,11.11308]
[1761267299750,2.3197,3873.4,3873.3,0.6749]
[1761267299950,1.5471,3872.8,3872.7,1.59606]
[1761267300148,1.5471,3872.8,3872.7,8.89206]
[1761267300764,2.1525,3872.8,3872.7,1.59606]
[1761267300960,0.3611,3873.0,3872.4,1.0304]
[1761267300961,2.5136,3872.5,3872.4,1.0304]
[1761267301158,2.5136,3872.5,3872.4,10.3464]
[1761267301359,2.5136,3872.5,3872.4,10.9111]
[1761267301656,2.5136,3872.5,3872.4,1.5961]
[1761267301861,2.5136,3872.5,3872.4,10.9111]
[1761267302253,0.3611,3873.0,3872.8,1.59454]
[1761267302451,0.9142,3873.2,3873.1,2.16021]
[1761267302654,0.9142,3873.2,3873.1,11.47521]
[1761267304361,2.1525,3873.2,3872.8,1.37990563]
[1761267304659,2.1525,3872.9,3872.8,1.03034]
[1761267304853,2.1525,3872.9,3872.8,10.34534]
[1761267305254,2.1525,3872.9,3872.8,1.03034]
[1761267305566,2.1525,3872.9,3872.8,10.34534]
[1761267306060,2.1525,3872.9,3872.8,1.03034]
[1761267306766,2.1525,3872.9,3872.8,10.34434]
[1761267307464,0.9142,3873.4,3873.3,0.5657]
[1761267307654,1.3226,3873.5,3873.4,1.6956]
[1761267308056,0.0026973,3874.0,3873.9,2.16012]
[1761267308266,0.0026973,3874.0,3873.9,14.3711676]
[1761267308970,0.9142,3874.7,3874.5,0.46444]
[1761267309265,0.9142,3874.7,3874.6,9.314]
[1761267309767,0.91753023,3874.7,3874.6,9.8782]
[1761267309961,0.91753023,3874.7,3874.6,9.314]
[1761267311764,1.55043023,3874.7,3874.6,10.4454]
[1761267313665,0.3611,3874.5,3873.6,0.91464776]
[1761267313967,0.6329,3873.9,3873.8,1.1314]
[1761267314159,1.2383,3873.9,3873.8,10.4424]
[1761267314354,2.1525,3873.9,3873.8,10.4424]
[1761267315064,0.9142,3873.8,3873.4,0.46457]
[1761267315268,1.9082,3873.5,3873.4,1.03027]
[1761267315570,1.9082,3873.0,3872.9,1.1314]
[1761267315770,2.5136,3873.0,3872.9,0.5657]
[1761267316075,0.9142,3872.4,3872.3,0.0022023]
[1761267316265,0.9142,3872.4,3872.3,9.3132023]
[1761267317761,0.9142,3872.4,3872.3,9.3122023]
[1761267318872,0.9142,3872.8,3872.3,9.7769123]
[1761267319067,0.3611,3873.0,3872.3,9.7769123]
[1761267319068,2.5136,3872.4,3872.3,9.7769123]
[1761267319270,2.5136,3872.4,3872.3,9.3122023]
[1761267319566,2.5136,3872.4,3872.3,9.8779023]
[1761267319772,0.9142,3872.4,3872.3,11.0078023]
[1761267320075,0.9142,3872.9,3872.4,1.0289]
[1761267320277,2.1525,3872.9,3872.8,0.5657]
[1761267320570,0.6329,3872.9,3872.8,9.311]
[1761267320758,1.5471,3872.9,3872.8,10.4424]
[1761267320968,0.9142,3872.9,3872.8,11.0066]
[1761267321368,1.5471,3873.3,3873.2,1.1314]
[1761267321670,0.9142,3873.3,3873.2,9.311]
[1761267321976,0.3611,3874.0,3873.5,1.02875]
[1761267321977,0.9142,3873.8,3873.5,1.02875]
[1761267322166,0.9142,3873.8,3873.6,9.311]
[1761267322366,0.9142,3873.8,3872.7,0.91464776]
[1761267322671,0.9142,3873.4,3873.2,0.46459]
[1761267322874,0.9142,3873.4,3873.2,1.02879]
[1761267323075,0.3611,3873.0,3872.5,0.91464776]
[1761267323280,0.3611,3873.0,3872.3,0.0022023]
[1761267323281,0.9142,3872.4,3872.3,0.0022023]
[1761267323578,0.9142,3872.7,3872.5,1.02888]
[1761267323875,0.9142,3872.7,3872.4,0.5642]
[1761267324072,0.9142,3872.7,3872.5,0.46467]
[1761267324269,0.9142,3872.7,3872.4,1.02889]
[1761267324866,0.9142,3872.7,3872.4,0.5642]
[1761267325062,0.9142,3872.7,3872.3,8.2611023]
[1761267325476,0.9142,3872.7,3872.4,0.46469]
[1761267326479,0.9142,3872.7,3872.3,7.7964023]
[1761267326675,2.1525,3872.7,3872.3,0.0022023]
[1761267326876,2.1525,3872.4,3872.3,7.0412023]
[1761267327373,0.9142,3872.4,3872.3,7.6069023]
[1761267327577,0.9142,3872.4,3872.3,7.9935023]
[1761267327776,0.8329,3872.7,3872.5,0.3866]